[Event "Early-Titled-Tuesday-Blitz-February-27-2024"]
[Site "Chess.com"]
[Date "2024.02.27"]
[Round "2"]
[White "LikeWater"]
[Black "ChadBiryani"]
[Result "1-0"]
[WhiteElo "2718"]
[BlackElo "2406"]
[TimeControl "180+1"]
[EndTime "8:17:14 PST"]
[Termination "LikeWater won on time"]

1. e4 {[%clk 0:03:00.9]} 1... d6 {[%clk 0:02:57]} 2. d4 {[%clk 0:02:59.1]} 2...
Nf6 {[%clk 0:02:57.2]} 3. Nc3 {[%clk 0:02:58.8]} 3... e5 {[%clk 0:02:57.1]} 4.
Nge2 {[%clk 0:02:58]} 4... Nc6 {[%clk 0:02:48.3]} 5. h3 {[%clk 0:02:55.2]} 5...
g6 {[%clk 0:02:47.4]} 6. g4 {[%clk 0:02:54.3]} 6... Bg7 {[%clk 0:02:46.7]} 7.
dxe5 {[%clk 0:02:49.1]} 7... Nxe5 {[%clk 0:02:46.7]} 8. Bg2 {[%clk 0:02:48.7]}
8... O-O {[%clk 0:02:46.5]} 9. O-O {[%clk 0:02:46.5]} 9... Nexg4 {[%clk
0:02:31.4]} 10. hxg4 {[%clk 0:02:43.7]} 10... Nxg4 {[%clk 0:02:31.7]} 11. f3
{[%clk 0:02:33.5]} 11... Ne5 {[%clk 0:02:20.1]} 12. Bf4 {[%clk 0:02:30.4]} 12...
Nc4 {[%clk 0:02:05.6]} 13. b3 {[%clk 0:02:23.7]} 13... Nb6 {[%clk 0:02:00.8]}
14. Qd2 {[%clk 0:02:20.9]} 14... Be6 {[%clk 0:01:50.5]} 15. Bh6 {[%clk
0:02:11.7]} 15... Qh4 {[%clk 0:01:28.9]} 16. Bxg7 {[%clk 0:02:10.4]} 16... Kxg7
{[%clk 0:01:28.2]} 17. Qf4 {[%clk 0:02:05.9]} 17... Qe7 {[%clk 0:01:24]} 18. Nd4
{[%clk 0:01:56.5]} 18... Bd7 {[%clk 0:01:20.4]} 19. Rae1 {[%clk 0:01:51]} 19...
Rae8 {[%clk 0:01:15.9]} 20. a4 {[%clk 0:01:37.1]} 20... a6 {[%clk 0:01:08.4]}
21. a5 {[%clk 0:01:33.8]} 21... Nc8 {[%clk 0:01:08.5]} 22. Nd5 {[%clk
0:01:32.2]} 22... Qd8 {[%clk 0:01:06.2]} 23. Qd2 {[%clk 0:01:17.8]} 23... c6
{[%clk 0:01:00.3]} 24. Ne3 {[%clk 0:01:13.6]} 24... Re5 {[%clk 0:00:58.4]} 25.
Nc4 {[%clk 0:01:08.7]} 25... Rh5 {[%clk 0:00:56]} 26. Qf4 {[%clk 0:01:03.5]}
26... Be6 {[%clk 0:00:46.3]} 27. Nxe6+ {[%clk 0:00:51.4]} 27... fxe6 {[%clk
0:00:47.2]} 28. Qg3 {[%clk 0:00:51.8]} 28... Rg5 {[%clk 0:00:39]} 29. Qh3 {[%clk
0:00:51.4]} 29... d5 {[%clk 0:00:33.7]} 30. Ne3 {[%clk 0:00:49.2]} 30... Qxa5
{[%clk 0:00:21.6]} 31. Qxe6 {[%clk 0:00:40.8]} 31... Qc5 {[%clk 0:00:18.5]} 32.
exd5 {[%clk 0:00:36.3]} 32... cxd5 {[%clk 0:00:17.9]} 33. Rf2 {[%clk 0:00:27.9]}
33... d4 {[%clk 0:00:15.6]} 34. Ng4 {[%clk 0:00:28.3]} 34... d3 {[%clk
0:00:07.7]} 35. cxd3 {[%clk 0:00:24.6]} 35... h5 {[%clk 0:00:07]} 36. Ne5 {[%clk
0:00:24.6]} 36... h4 {[%clk 0:00:02.4]} 37. Nd7 {[%clk 0:00:24]} 37... Qf5
{[%clk 0:00:01.6]} 38. Nxf8 {[%clk 0:00:21.9]} 1-0

[Event "Early-Titled-Tuesday-Blitz-February-27-2024"]
[Site "Chess.com"]
[Date "2024.02.27"]
[Round "2"]
[White "GMJustin"]
[Black "ProChessWICTH"]
[Result "1-0"]
[WhiteElo "2338"]
[BlackElo "2530"]
[TimeControl "180+1"]
[EndTime "8:17:15 PST"]
[Termination "GMJustin won on time"]

1. d4 {[%clk 0:02:58.7]} 1... Nf6 {[%clk 0:02:59.4]} 2. c4 {[%clk 0:02:57.7]}
2... g6 {[%clk 0:02:58.8]} 3. Nc3 {[%clk 0:02:55.4]} 3... d5 {[%clk 0:02:59.4]}
4. Nf3 {[%clk 0:02:39.8]} 4... Bg7 {[%clk 0:02:47]} 5. Qb3 {[%clk 0:02:36.6]}
5... dxc4 {[%clk 0:02:44.3]} 6. Qxc4 {[%clk 0:02:37.5]} 6... O-O {[%clk
0:02:44.5]} 7. e4 {[%clk 0:02:37.2]} 7... Nbd7 {[%clk 0:02:35.3]} 8. e5 {[%clk
0:02:33.3]} 8... Nb6 {[%clk 0:02:27.8]} 9. exf6 {[%clk 0:02:31.9]} 9... Nxc4
{[%clk 0:02:25.1]} 10. fxg7 {[%clk 0:02:31.9]} 10... Kxg7 {[%clk 0:02:24.7]} 11.
Bxc4 {[%clk 0:02:31.6]} 11... Bg4 {[%clk 0:02:19]} 12. Be3 {[%clk 0:02:14.3]}
12... Bxf3 {[%clk 0:02:14]} 13. gxf3 {[%clk 0:02:15.2]} 13... a6 {[%clk
0:02:08]} 14. O-O-O {[%clk 0:02:10.4]} 14... b5 {[%clk 0:02:08]} 15. Bd3 {[%clk
0:02:10.2]} 15... c6 {[%clk 0:01:51.5]} 16. Kb1 {[%clk 0:02:08.4]} 16... a5
{[%clk 0:01:51.2]} 17. h4 {[%clk 0:02:04.5]} 17... h5 {[%clk 0:01:50.2]} 18. Ne4
{[%clk 0:01:55.9]} 18... b4 {[%clk 0:01:37.4]} 19. Nc5 {[%clk 0:01:53.8]} 19...
a4 {[%clk 0:01:33.7]} 20. Rhg1 {[%clk 0:01:47]} 20... Qc8 {[%clk 0:01:10.5]} 21.
Rg3 {[%clk 0:01:45.6]} 21... Rd8 {[%clk 0:00:59.4]} 22. Rc1 {[%clk 0:01:40.2]}
22... Ra5 {[%clk 0:00:40.5]} 23. Be4 {[%clk 0:01:36.1]} 23... Kg8 {[%clk
0:00:22.5]} 24. Rcg1 {[%clk 0:01:19.1]} 24... Qb8 {[%clk 0:00:13.6]} 25. Bxg6
{[%clk 0:01:11.1]} 25... fxg6 {[%clk 0:00:06.8]} 26. Rxg6+ {[%clk 0:01:10.9]}
26... Kf7 {[%clk 0:00:05.4]} 27. Rg7+ {[%clk 0:01:10]} 27... Kf6 {[%clk
0:00:02.5]} 28. R1g6+ {[%clk 0:01:06.3]} 28... Kf5 {[%clk 0:00:02.7]} 29. Rg5+
{[%clk 0:01:02.7]} 29... Kf6 {[%clk 0:00:02.9]} 30. Ne4+ {[%clk 0:00:59.6]}
30... Ke6 {[%clk 0:00:03.4]} 31. Rxa5 {[%clk 0:00:58.2]} 31... b3 {[%clk
0:00:03.5]} 32. a3 {[%clk 0:00:48.4]} 32... Qh2 {[%clk 0:00:02.4]} 33. Re5+
{[%clk 0:00:45.9]} 33... Kd7 {[%clk 0:00:02.4]} 34. Rexe7+ {[%clk 0:00:32.1]}
34... Kc8 {[%clk 0:00:03]} 35. Rc7+ {[%clk 0:00:31.6]} 35... Kb8 {[%clk
0:00:03.4]} 36. Rb7+ {[%clk 0:00:31.2]} 36... Ka8 {[%clk 0:00:04.1]} 37. Ra7+
{[%clk 0:00:29.8]} 37... Kb8 {[%clk 0:00:04.5]} 38. Rgb7+ {[%clk 0:00:25.9]}
38... Kc8 {[%clk 0:00:04.5]} 39. Nc5 {[%clk 0:00:21.1]} 39... Qh1+ {[%clk
0:00:03.9]} 40. Bc1 {[%clk 0:00:20.9]} 1-0

[Event "Early-Titled-Tuesday-Blitz-February-27-2024"]
[Site "Chess.com"]
[Date "2024.02.27"]
[Round "2"]
[White "Alina_Gumerovna"]
[Black "claudyna16"]
[Result "0-1"]
[WhiteElo "2093"]
[BlackElo "2456"]
[TimeControl "180+1"]
[EndTime "8:17:15 PST"]
[Termination "claudyna16 won on time"]

1. e4 {[%clk 0:03:00.4]} 1... e5 {[%clk 0:02:59.1]} 2. Nf3 {[%clk 0:03:00.5]}
2... Nc6 {[%clk 0:02:59.3]} 3. Bb5 {[%clk 0:02:58]} 3... a6 {[%clk 0:02:59.2]}
4. Ba4 {[%clk 0:02:55.6]} 4... d6 {[%clk 0:02:59.3]} 5. d4 {[%clk 0:02:54.6]}
5... b5 {[%clk 0:02:57.9]} 6. Bb3 {[%clk 0:02:52.7]} 6... exd4 {[%clk
0:02:58.2]} 7. Bd5 {[%clk 0:02:31.3]} 7... Bb7 {[%clk 0:02:41.4]} 8. Nxd4 {[%clk
0:02:30.1]} 8... Na5 {[%clk 0:02:41.5]} 9. O-O {[%clk 0:02:10.3]} 9... Nf6
{[%clk 0:02:36.8]} 10. Bxb7 {[%clk 0:02:08.9]} 10... Nxb7 {[%clk 0:02:37.7]} 11.
Bg5 {[%clk 0:02:00.2]} 11... c5 {[%clk 0:02:29]} 12. Nf5 {[%clk 0:01:54.5]}
12... g6 {[%clk 0:02:26.9]} 13. e5 {[%clk 0:01:23.5]} 13... gxf5 {[%clk
0:01:54]} 14. Bxf6 {[%clk 0:01:19.1]} 14... Qd7 {[%clk 0:01:48.2]} 15. Bxh8
{[%clk 0:01:18.9]} 15... O-O-O {[%clk 0:01:46.3]} 16. Bf6 {[%clk 0:01:15.9]}
16... Re8 {[%clk 0:01:45.5]} 17. Nc3 {[%clk 0:01:09.5]} 17... Qe6 {[%clk
0:01:37.5]} 18. f4 {[%clk 0:01:04.5]} 18... dxe5 {[%clk 0:01:32]} 19. fxe5
{[%clk 0:01:05.4]} 19... c4 {[%clk 0:01:32.2]} 20. Qd5 {[%clk 0:01:02.4]} 20...
Bc5+ {[%clk 0:01:23]} 21. Kh1 {[%clk 0:01:00.9]} 21... b4 {[%clk 0:01:23.1]} 22.
Qxe6+ {[%clk 0:00:36.7]} 22... fxe6 {[%clk 0:01:24]} 23. Na4 {[%clk 0:00:27.1]}
23... Ba7 {[%clk 0:01:24]} 24. c3 {[%clk 0:00:27.1]} 24... a5 {[%clk 0:01:23.1]}
25. cxb4 {[%clk 0:00:27.1]} 25... axb4 {[%clk 0:01:24]} 26. Rac1 {[%clk
0:00:27.6]} 26... Na5 {[%clk 0:01:23.1]} 27. Rfd1 {[%clk 0:00:22.9]} 27... Kc7
{[%clk 0:01:20.6]} 28. a3 {[%clk 0:00:21.4]} 28... bxa3 {[%clk 0:01:17.5]} 29.
bxa3 {[%clk 0:00:21.1]} 29... Rb8 {[%clk 0:01:18]} 30. Nc3 {[%clk 0:00:17.6]}
30... Nb3 {[%clk 0:01:13.3]} 31. Rc2 {[%clk 0:00:16.5]} 31... Nd4 {[%clk
0:01:12.5]} 32. Rcd2 {[%clk 0:00:12.8]} 32... Rb3 {[%clk 0:01:11.3]} 33. Ne2
{[%clk 0:00:05.7]} 33... Nxe2 {[%clk 0:00:54.4]} 34. Rxe2 {[%clk 0:00:06.6]}
34... c3 {[%clk 0:00:55.1]} 35. Bd8+ {[%clk 0:00:04.8]} 35... Kc6 {[%clk
0:00:53.7]} 36. Be7 {[%clk 0:00:04.9]} 36... Kb5 {[%clk 0:00:45.2]} 37. h4
{[%clk 0:00:05.1]} 37... Kc4 {[%clk 0:00:41.8]} 38. Rd7 {[%clk 0:00:03.4]} 38...
Bd4 {[%clk 0:00:38.4]} 39. Rc2 {[%clk 0:00:01.9]} 39... Kd3 {[%clk 0:00:37.4]}
40. Rc1 {[%clk 0:00:01.9]} 40... c2 {[%clk 0:00:33.8]} 41. Rxd4+ {[%clk
0:00:01.3]} 41... Kxd4 {[%clk 0:00:33.8]} 0-1

[Event "Early-Titled-Tuesday-Blitz-February-27-2024"]
[Site "Chess.com"]
[Date "2024.02.27"]
[Round "2"]
[White "Pedrada88"]
[Black "GMAkobianSTL"]
[Result "0-1"]
[WhiteElo "2557"]
[BlackElo "2803"]
[TimeControl "180+1"]
[EndTime "8:17:17 PST"]
[Termination "GMAkobianSTL won by checkmate"]

1. Nf3 {[%clk 0:03:00.9]} 1... d5 {[%clk 0:02:57.4]} 2. g3 {[%clk 0:03:01.2]}
2... Nf6 {[%clk 0:02:56.5]} 3. Bg2 {[%clk 0:03:01.5]} 3... Bg4 {[%clk
0:02:56.4]} 4. O-O {[%clk 0:03:02]} 4... Nbd7 {[%clk 0:02:56.2]} 5. d4 {[%clk
0:03:02.3]} 5... e6 {[%clk 0:02:56.1]} 6. Nbd2 {[%clk 0:03:02.8]} 6... Be7
{[%clk 0:02:55.1]} 7. Re1 {[%clk 0:03:03.3]} 7... O-O {[%clk 0:02:54.8]} 8. e4
{[%clk 0:03:03.5]} 8... dxe4 {[%clk 0:02:54.9]} 9. Nxe4 {[%clk 0:03:04.4]} 9...
Nxe4 {[%clk 0:02:54.9]} 10. Rxe4 {[%clk 0:03:05.3]} 10... Nf6 {[%clk 0:02:54.7]}
11. Re1 {[%clk 0:03:04.9]} 11... c6 {[%clk 0:02:54.9]} 12. c3 {[%clk 0:03:05.1]}
12... Qc7 {[%clk 0:02:54.7]} 13. Bf4 {[%clk 0:03:03.9]} 13... Bd6 {[%clk
0:02:54.6]} 14. Bxd6 {[%clk 0:03:02.5]} 14... Qxd6 {[%clk 0:02:55.5]} 15. Qb3
{[%clk 0:03:01.9]} 15... Bxf3 {[%clk 0:02:53.5]} 16. Bxf3 {[%clk 0:03:01.4]}
16... Qc7 {[%clk 0:02:53.2]} 17. a4 {[%clk 0:03:00.7]} 17... a6 {[%clk
0:02:52.5]} 18. a5 {[%clk 0:03:00.3]} 18... Rfd8 {[%clk 0:02:48.8]} 19. Ra4
{[%clk 0:02:57.4]} 19... Rd7 {[%clk 0:02:40.3]} 20. Rb4 {[%clk 0:02:56.8]} 20...
Rad8 {[%clk 0:02:26.7]} 21. Kg2 {[%clk 0:02:52.5]} 21... g6 {[%clk 0:02:26.4]}
22. h4 {[%clk 0:02:52.5]} 22... h5 {[%clk 0:02:26]} 23. Re5 {[%clk 0:02:50.4]}
23... Kg7 {[%clk 0:02:25.5]} 24. Qc4 {[%clk 0:02:44.4]} 24... Nd5 {[%clk
0:02:24.6]} 25. Bxd5 {[%clk 0:02:39.1]} 25... exd5 {[%clk 0:02:23.8]} 26. Qc5
{[%clk 0:02:36.6]} 26... Rb8 {[%clk 0:02:08.1]} 27. Rb6 {[%clk 0:02:35.1]} 27...
f6 {[%clk 0:01:49.7]} 28. Re3 {[%clk 0:02:23.6]} 28... Kf7 {[%clk 0:01:49.4]}
29. Qb4 {[%clk 0:02:15.3]} 29... Re8 {[%clk 0:01:34.9]} 30. Rxe8 {[%clk
0:02:07.6]} 30... Kxe8 {[%clk 0:01:35.8]} 31. Qb3 {[%clk 0:02:06.5]} 31... Kf7
{[%clk 0:01:33.8]} 32. c4 {[%clk 0:01:49.4]} 32... dxc4 {[%clk 0:01:33.3]} 33.
Qxc4+ {[%clk 0:01:50.3]} 33... Kg7 {[%clk 0:01:32.5]} 34. Qb4 {[%clk 0:01:26.5]}
34... Kf7 {[%clk 0:01:28.5]} 35. Qb3+ {[%clk 0:01:26.3]} 35... Kg7 {[%clk
0:01:28.6]} 36. Qb4 {[%clk 0:01:26.6]} 36... Re7 {[%clk 0:01:23.5]} 37. Qb3
{[%clk 0:01:17]} 37... Qd7 {[%clk 0:01:22.8]} 38. Qc4 {[%clk 0:00:47.5]} 38...
Kf8 {[%clk 0:01:15.2]} 39. d5 {[%clk 0:00:40.9]} 39... cxd5 {[%clk 0:00:58.3]}
40. Rxf6+ {[%clk 0:00:41.1]} 40... Rf7 {[%clk 0:00:58.6]} 41. Qc5+ {[%clk
0:00:38.8]} 41... Kg7 {[%clk 0:00:58.2]} 42. Rd6 {[%clk 0:00:27.5]} 42... Qf5
{[%clk 0:00:58.1]} 43. Rxd5 {[%clk 0:00:25.9]} 43... Qf3+ {[%clk 0:00:56.6]} 44.
Kh2 {[%clk 0:00:25.4]} 44... Qxf2+ {[%clk 0:00:56.3]} 45. Qxf2 {[%clk
0:00:22.4]} 45... Rxf2+ {[%clk 0:00:57.2]} 46. Kh3 {[%clk 0:00:22.1]} 46... Rxb2
{[%clk 0:00:58.1]} 47. Rd7+ {[%clk 0:00:17.4]} 47... Kf6 {[%clk 0:00:58.2]} 48.
Rd6+ {[%clk 0:00:14.5]} 48... Kf5 {[%clk 0:00:58.4]} 49. Rd5+ {[%clk 0:00:13.1]}
49... Ke6 {[%clk 0:00:58.6]} 50. Rg5 {[%clk 0:00:07.8]} 50... Kf6 {[%clk
0:00:58.1]} 51. Rc5 {[%clk 0:00:08]} 51... Rb5 {[%clk 0:00:57.6]} 52. Rc7 {[%clk
0:00:06.5]} 52... Kf5 {[%clk 0:00:57.6]} 53. Rf7+ {[%clk 0:00:04.6]} 53... Ke4
{[%clk 0:00:56.6]} 54. Re7+ {[%clk 0:00:04.7]} 54... Kf3 {[%clk 0:00:56.2]} 55.
Rf7+ {[%clk 0:00:04.9]} 55... Ke2 {[%clk 0:00:56.3]} 56. Re7+ {[%clk 0:00:05]}
56... Kf2 {[%clk 0:00:56.6]} 57. Rf7+ {[%clk 0:00:05.4]} 57... Kg1 {[%clk
0:00:56.7]} 58. Rf4 {[%clk 0:00:02.1]} 58... Rb2 {[%clk 0:00:55.8]} 59. g4
{[%clk 0:00:02.2]} 59... Rb3+ {[%clk 0:00:56.1]} 60. Rf3 {[%clk 0:00:01.8]}
60... Rxf3# {[%clk 0:00:56.6]} 0-1

[Event "Early-Titled-Tuesday-Blitz-February-27-2024"]
[Site "Chess.com"]
[Date "2024.02.27"]
[Round "2"]
[White "Rogarcia1"]
[Black "tetrix83"]
[Result "1-0"]
[WhiteElo "2408"]
[BlackElo "2524"]
[TimeControl "180+1"]
[EndTime "8:17:17 PST"]
[Termination "Rogarcia1 won by checkmate"]

1. e4 {[%clk 0:03:00.9]} 1... c5 {[%clk 0:02:32.7]} 2. Nf3 {[%clk 0:02:59.4]}
2... d6 {[%clk 0:02:32.9]} 3. d4 {[%clk 0:02:59.2]} 3... cxd4 {[%clk 0:02:33]}
4. Nxd4 {[%clk 0:02:59.8]} 4... Nf6 {[%clk 0:02:33.2]} 5. Nc3 {[%clk 0:03:00.2]}
5... a6 {[%clk 0:02:33.4]} 6. f3 {[%clk 0:02:46.7]} 6... e6 {[%clk 0:02:33.2]}
7. Be3 {[%clk 0:02:45]} 7... b5 {[%clk 0:02:32.6]} 8. g4 {[%clk 0:02:45.2]} 8...
Qc7 {[%clk 0:02:29.1]} 9. a4 {[%clk 0:02:34]} 9... b4 {[%clk 0:02:28.5]} 10.
Nce2 {[%clk 0:02:34.3]} 10... d5 {[%clk 0:02:21.1]} 11. g5 {[%clk 0:02:34.2]}
11... Nfd7 {[%clk 0:02:16.1]} 12. exd5 {[%clk 0:02:32.3]} 12... exd5 {[%clk
0:02:14.8]} 13. Nf4 {[%clk 0:01:59.7]} 13... Bb7 {[%clk 0:02:11.3]} 14. Bh3
{[%clk 0:01:37.8]} 14... Bd6 {[%clk 0:02:09.6]} 15. Qd2 {[%clk 0:01:32.8]} 15...
Ne5 {[%clk 0:02:06.2]} 16. b3 {[%clk 0:01:31.4]} 16... O-O {[%clk 0:02:00.6]}
17. O-O-O {[%clk 0:01:30.2]} 17... g6 {[%clk 0:01:53.9]} 18. Kb1 {[%clk
0:01:24.4]} 18... Nbd7 {[%clk 0:01:44.7]} 19. Bf1 {[%clk 0:01:09.9]} 19... Nb6
{[%clk 0:01:07.3]} 20. h4 {[%clk 0:00:40.1]} 20... Nec4 {[%clk 0:00:54.3]} 21.
bxc4 {[%clk 0:00:39.1]} 21... Nxc4 {[%clk 0:00:54.8]} 22. Bxc4 {[%clk
0:00:38.7]} 22... dxc4 {[%clk 0:00:53.5]} 23. Nde6 {[%clk 0:00:34]} 23... fxe6
{[%clk 0:00:52.9]} 24. Qxd6 {[%clk 0:00:34.1]} 24... Qxd6 {[%clk 0:00:50.1]} 25.
Rxd6 {[%clk 0:00:34.2]} 25... Bxf3 {[%clk 0:00:44.1]} 26. Re1 {[%clk 0:00:33.9]}
26... Rfd8 {[%clk 0:00:34.7]} 27. Rxe6 {[%clk 0:00:29.3]} 27... b3 {[%clk
0:00:34.4]} 28. cxb3 {[%clk 0:00:25]} 28... cxb3 {[%clk 0:00:34.1]} 29. Kb2
{[%clk 0:00:23.8]} 29... Rac8 {[%clk 0:00:30.6]} 30. Kxb3 {[%clk 0:00:20]} 30...
Bg4 {[%clk 0:00:20.6]} 31. Rb6 {[%clk 0:00:20]} 31... Bd1+ {[%clk 0:00:18]} 32.
Kb2 {[%clk 0:00:19.6]} 32... Rc2+ {[%clk 0:00:17.3]} 33. Kb1 {[%clk 0:00:19.8]}
33... Rh2 {[%clk 0:00:16.8]} 34. Rb2 {[%clk 0:00:18.8]} 34... Rxh4 {[%clk
0:00:12]} 35. Ne6 {[%clk 0:00:19.2]} 35... Rd3 {[%clk 0:00:08.5]} 36. Nd4 {[%clk
0:00:19.4]} 36... Bxa4 {[%clk 0:00:05]} 37. Nf3 {[%clk 0:00:19.8]} 37... Rc4
{[%clk 0:00:04.2]} 38. Rb8+ {[%clk 0:00:19.3]} 38... Kg7 {[%clk 0:00:03.6]} 39.
Bd4+ {[%clk 0:00:19.7]} 39... Rcxd4 {[%clk 0:00:02.6]} 40. Nxd4 {[%clk
0:00:19.7]} 40... Rxd4 {[%clk 0:00:02.3]} 41. Re7# {[%clk 0:00:19.8]} 1-0

[Event "Early-Titled-Tuesday-Blitz-February-27-2024"]
[Site "Chess.com"]
[Date "2024.02.27"]
[Round "2"]
[White "NewBornNow"]
[Black "CM_rui"]
[Result "0-1"]
[WhiteElo "2874"]
[BlackElo "2612"]
[TimeControl "180+1"]
[EndTime "8:17:21 PST"]
[Termination "CM_rui won on time"]

1. e4 {[%clk 0:03:00.9]} 1... e5 {[%clk 0:02:59.7]} 2. Nf3 {[%clk 0:03:00.3]}
2... Nc6 {[%clk 0:03:00.4]} 3. Nc3 {[%clk 0:03:00.2]} 3... Nf6 {[%clk
0:03:00.2]} 4. Bb5 {[%clk 0:03:00.2]} 4... Bb4 {[%clk 0:02:59.8]} 5. O-O {[%clk
0:02:59.4]} 5... O-O {[%clk 0:02:59.9]} 6. Bxc6 {[%clk 0:02:58.6]} 6... bxc6
{[%clk 0:02:58.9]} 7. Nxe5 {[%clk 0:02:57.2]} 7... Bxc3 {[%clk 0:02:58.1]} 8.
dxc3 {[%clk 0:02:55.7]} 8... Nxe4 {[%clk 0:02:56.4]} 9. Re1 {[%clk 0:02:50.7]}
9... d5 {[%clk 0:02:40.3]} 10. f3 {[%clk 0:02:35.9]} 10... Qf6 {[%clk
0:02:28.6]} 11. fxe4 {[%clk 0:02:19.7]} 11... Qxe5 {[%clk 0:02:28.4]} 12. exd5
{[%clk 0:02:19.5]} 12... Qxd5 {[%clk 0:02:29.3]} 13. Bf4 {[%clk 0:02:17.2]}
13... Bf5 {[%clk 0:02:17.8]} 14. Bxc7 {[%clk 0:02:07]} 14... Rac8 {[%clk
0:02:07.7]} 15. Qxd5 {[%clk 0:02:00]} 15... cxd5 {[%clk 0:02:08.6]} 16. Bd6
{[%clk 0:01:55.4]} 16... Rfe8 {[%clk 0:01:56.5]} 17. Rxe8+ {[%clk 0:01:27.8]}
17... Rxe8 {[%clk 0:01:57.4]} 18. Rd1 {[%clk 0:01:25.9]} 18... Re2 {[%clk
0:01:38.1]} 19. Rxd5 {[%clk 0:01:04.5]} 19... Be4 {[%clk 0:01:11.2]} 20. Rg5
{[%clk 0:00:40.3]} 20... f6 {[%clk 0:00:58.5]} 21. Rg3 {[%clk 0:00:36.4]} 21...
Rxc2 {[%clk 0:00:58.2]} 22. b4 {[%clk 0:00:35.6]} 22... h5 {[%clk 0:00:52]} 23.
h4 {[%clk 0:00:33.5]} 23... Rxa2 {[%clk 0:00:45.4]} 24. Bc5 {[%clk 0:00:33.2]}
24... Bd5 {[%clk 0:00:37.5]} 25. Kf1 {[%clk 0:00:24.3]} 25... Kf7 {[%clk
0:00:37.6]} 26. Ke1 {[%clk 0:00:18.7]} 26... Bxg2 {[%clk 0:00:30.3]} 27. Bxa7
{[%clk 0:00:17.8]} 27... Bd5 {[%clk 0:00:22.4]} 28. Bd4 {[%clk 0:00:16]} 28...
Bc4 {[%clk 0:00:21.8]} 29. Re3 {[%clk 0:00:14.6]} 29... g5 {[%clk 0:00:17.9]}
30. Rf3 {[%clk 0:00:12.7]} 30... gxh4 {[%clk 0:00:06.5]} 31. Rxf6+ {[%clk
0:00:11.8]} 31... Ke7 {[%clk 0:00:07.1]} 32. Rh6 {[%clk 0:00:06.2]} 32... h3
{[%clk 0:00:07.4]} 33. Rxh5 {[%clk 0:00:02.9]} 33... h2 {[%clk 0:00:07.6]} 34.
Rh7+ {[%clk 0:00:02.6]} 34... Ke6 {[%clk 0:00:07.5]} 35. Rh6+ {[%clk 0:00:02.5]}
35... Kf5 {[%clk 0:00:05.1]} 0-1

[Event "Early-Titled-Tuesday-Blitz-February-27-2024"]
[Site "Chess.com"]
[Date "2024.02.27"]
[Round "2"]
[White "SuperBlitz2013"]
[Black "joksijoksi"]
[Result "1-0"]
[WhiteElo "2224"]
[BlackElo "2480"]
[TimeControl "180+1"]
[EndTime "8:17:22 PST"]
[Termination "SuperBlitz2013 won by checkmate"]

1. e4 {[%clk 0:03:00.9]} 1... g6 {[%clk 0:02:54]} 2. d4 {[%clk 0:02:59.6]} 2...
Bg7 {[%clk 0:02:54.3]} 3. Nc3 {[%clk 0:03:00.3]} 3... d6 {[%clk 0:02:54.7]} 4.
Nf3 {[%clk 0:02:58.9]} 4... Nd7 {[%clk 0:02:53.6]} 5. Be2 {[%clk 0:02:59.2]}
5... Ngf6 {[%clk 0:02:54]} 6. O-O {[%clk 0:02:59.6]} 6... e5 {[%clk 0:02:53.9]}
7. Re1 {[%clk 0:02:58.1]} 7... O-O {[%clk 0:02:53.8]} 8. h3 {[%clk 0:02:57.9]}
8... Nh5 {[%clk 0:02:52.4]} 9. Bg5 {[%clk 0:02:53.3]} 9... f6 {[%clk 0:02:47.1]}
10. Be3 {[%clk 0:02:53]} 10... f5 {[%clk 0:02:41.2]} 11. exf5 {[%clk 0:02:47.6]}
11... gxf5 {[%clk 0:02:40.3]} 12. dxe5 {[%clk 0:02:43.3]} 12... dxe5 {[%clk
0:02:29.8]} 13. Nxe5 {[%clk 0:02:19.2]} 13... Bxe5 {[%clk 0:02:20.2]} 14. Bxh5
{[%clk 0:02:16.6]} 14... Qf6 {[%clk 0:02:10]} 15. Nd5 {[%clk 0:02:11.5]} 15...
Qd6 {[%clk 0:02:10.4]} 16. Bh6 {[%clk 0:01:52.2]} 16... c6 {[%clk 0:01:57.8]}
17. Bxf8 {[%clk 0:01:49.8]} 17... Qxf8 {[%clk 0:01:58.5]} 18. Nc3 {[%clk
0:01:43]} 18... Qh6 {[%clk 0:01:57.2]} 19. Qf3 {[%clk 0:01:37.5]} 19... Qf6
{[%clk 0:01:51.1]} 20. Rad1 {[%clk 0:01:30.4]} 20... Nf8 {[%clk 0:01:49.9]} 21.
Qe2 {[%clk 0:01:19.3]} 21... Bd6 {[%clk 0:01:45.9]} 22. Qc4+ {[%clk 0:01:11.3]}
22... Kg7 {[%clk 0:01:15]} 23. Rxd6 {[%clk 0:00:38.2]} 23... Qxd6 {[%clk
0:01:09.9]} 24. Qf7+ {[%clk 0:00:37.8]} 24... Kh6 {[%clk 0:01:09.3]} 25. Re7
{[%clk 0:00:30.1]} 25... Be6 {[%clk 0:00:48.2]} 26. Qf6+ {[%clk 0:00:13.4]}
26... Kxh5 {[%clk 0:00:19.2]} 27. Rg7 {[%clk 0:00:12.7]} 27... h6 {[%clk
0:00:16.9]} 28. g4+ {[%clk 0:00:08.4]} 28... fxg4 {[%clk 0:00:17.8]} 29. hxg4+
{[%clk 0:00:08.5]} 29... Bxg4 {[%clk 0:00:18.7]} 30. Qxd6 {[%clk 0:00:08.4]}
30... Re8 {[%clk 0:00:18.2]} 31. Rg8 {[%clk 0:00:05.1]} 31... Re1+ {[%clk
0:00:17.3]} 32. Kh2 {[%clk 0:00:05.5]} 32... Nh7 {[%clk 0:00:16.9]} 33. Qc5+
{[%clk 0:00:03.5]} 33... Ng5 {[%clk 0:00:16.8]} 34. f4 {[%clk 0:00:02.8]} 34...
Bf3 {[%clk 0:00:13.7]} 35. fxg5 {[%clk 0:00:03.1]} 35... Rh1+ {[%clk 0:00:13.8]}
36. Kg3 {[%clk 0:00:03.8]} 36... Rg1+ {[%clk 0:00:14.1]} 37. Kxf3 {[%clk
0:00:04.1]} 37... Rf1+ {[%clk 0:00:14.2]} 38. Ke2 {[%clk 0:00:04]} 38... Rg1
{[%clk 0:00:12.1]} 39. gxh6+ {[%clk 0:00:04.9]} 39... Kxh6 {[%clk 0:00:10.9]}
40. Rxg1 {[%clk 0:00:05.8]} 40... Kh7 {[%clk 0:00:11.1]} 41. Qf8 {[%clk
0:00:06]} 41... c5 {[%clk 0:00:09.3]} 42. Qg7# {[%clk 0:00:06.9]} 1-0